Cogmind - Beta 17.1 @@@ ROGUE MODE // 2026.09.07 @ 01:54:43 Player: Boxplot Result: Destroyed by as-60877 with Assembled Heavy Rifle Performance ------------- Evolutions (1) 500 Regions Visited (4) 800 Robots Destroyed (83) 415 Value Destroyed (1900) 1900 Prototype IDs (8) 160 Alien Tech Used (0) 0 Bonus (-336) -336 TOTAL SCORE: 3439 Bonus ------- Friendly Fire -336 Cogmind --------- Core Integrity 0/400 Matter 241/300 Energy 100/100 System Corruption 3% Temperature Cool (0) Movement Core (1400) Ox27 Location -9/Mines Parts ------- > --- POWER (1) -------- (None) > --- PROPULSION (3) --- (None) > --- UTILITY (3) ------ Huge Storage Unit Advanced Targeting Computer > --- WEAPON (2) ------- Improved Assault Rifle > --- INVENTORY (25) --- Improved Ion Engine Light Nuclear Core Light Treads Improved Treads Wheel Hover Unit Hover Unit Hover Unit Hover Unit Hover Unit Hover Unit Improved Heat Sink Improved Heat Sink Large Storage Unit High-capacity Storage Unit High-capacity Battery (250) Improved Signal Interpreter Hacking Suite Improved Medium Laser Improved Medium Laser Heavy Assault Rifle Heavy Assault Rifle Rocket Launcher Peak State ------------ > --- POWER ------------ Improved Ion Engine > --- PROPULSION ------- Improved Treads Wheel Armored Wheel > --- UTILITY ---------- Huge Storage Unit Advanced Targeting Computer Hardened Light Armor Plating > --- WEAPON ----------- Improved Assault Rifle Improved Assault Rifle > --- INVENTORY -------- Improved Ion Engine Light Nuclear Core Improved Treads Wheel Hover Unit Hover Unit Hover Unit Hover Unit Hover Unit Hover Unit Improved Heat Sink Improved Heat Sink Large Storage Unit High-capacity Storage Unit High-capacity Battery Improved Signal Interpreter Hacking Suite Particle Gun Improved Medium Laser Improved Medium Laser Light Assault Rifle Improved Assault Rifle Grenade Launcher Grenade Launcher Grenade Launcher [Rating: 23] Favorites ----------- Power Reinforced Ion Engine Engine Reinforced Ion Engine Propulsion Wheel Treads Light Treads Wheel Wheel Utility Huge Storage Unit Device Improved Heat Sink Storage Huge Storage Unit Processor Advanced Targeting Computer Protection Hardened Light Armor Plating Weapon Small Laser Energy Gun Small Laser Ballistic Gun Improved Assault Rifle Launcher Rocket Launcher Build | -11 -10 -10 -9 -9 ------- Run | Yrd Mat Min Mat Min Slots Evolved 2 | . . . 2 . Power . | . . . . . Propulsion 1 | . . . 1 . Utility 1 | . . . 1 . Weapon . | . . . . . Parts Attached 50 | 6 7 8 27 2 Power 7 | 1 2 1 3 . Engine 7 | 1 2 1 3 . Core . | . . . . . Reactor . | . . . . . Propulsion 24 | 2 3 3 16 . Treads 8 | 1 1 1 5 . Leg . | . . . . . Wheel 16 | 1 2 2 11 . Hover . | . . . . . Flight . | . . . . . Utility 8 | 1 2 1 4 . Device 3 | . 1 1 1 . Storage 2 | 1 1 . . . Processor 1 | . . . 1 . Hackware . | . . . . . Protection 2 | . . . 2 . Artifact . | . . . . . Weapon 11 | 2 . 3 4 2 Energy Gun 3 | 2 . 1 . . Energy Cannon . | . . . . . Ballistic Gun 6 | . . 2 3 1 Ballistic Cannon . | . . . . . Launcher 2 | . . . 1 1 Special Weapon . | . . . . . Impact Weapon . | . . . . . Slashing Weapon . | . . . . . Piercing Weapon . | . . . . . Special Melee Weapon . | . . . . . Unidentified Prototypes 1 | . . . 1 . Parts Lost 15 | . . 3 5 7 Power 2 | . . . 1 1 Propulsion 8 | . . 2 3 3 Utility 1 | . . . 1 . Weapon 4 | . . 1 . 3 Highest Loss Streak 7 | . . 2 2 7 To Critical Strikes . | . . . . . Average Backups 23 | 3 19 24 24 24 Power 2 | 1 3 2 2 2 Propulsion 7 | 2 5 8 8 9 Utility 5 | . 3 5 6 7 Weapon 7 | . 7 8 7 6 Tool/Special . | . . . . . Unused Backups 50 | . 7 3 19 21 Power 7 | . 3 . 2 2 Propulsion 20 | . 1 2 8 9 Utility 6 | . 1 . . 5 Weapon 17 | . 2 1 9 5 Tool/Special . | . . . . . Average Slot Usage (%) 98 | . 99 99 98 84 Engine 12 | . 14 14 10 10 Treads 12 | . 14 14 11 10 Wheel 17 | . 14 13 21 21 Device 7 | . 12 14 2 . Storage 12 | . 14 14 11 11 Processor 5 | . . . 11 11 Protection 3 | . . . 6 . Energy Gun 11 | . 28 18 . . Ballistic Gun 13 | . . 9 21 20 Peak Build Rating 23 | 6 11 14 23 21 Average Rating 16 | 4 10 13 21 20 On Entrance 10 | . 6 11 14 21 Avg Prop Armor Cover (%) 10 | 17 13 13 9 10 Naked Turns . | . . . . . Heaviest Build 101 | 12 92 92 101 96 Greatest Support 28 | 10 10 10 28 22 Greatest Overweight (x) 9 | 1 9 9 5 6 Average Overweight (x) 5 | . 7 8 3 3 Largest Inventory Capacity 25 | 8 25 25 25 25 Average Capacity 24 | 6 24 25 25 25 Most Carried 25 | 6 25 25 25 25 Average Carried 23 | 3 19 24 24 24 Final Capacity 25 | 8 25 25 25 25 Final Carried 25 | 6 24 25 25 23 Class Distribution -------------------- 100% | Mutant Dominant Class ---------------- Mutant | -10/Materials Mutant | -10/Mines Mutant | -9/Materials Mutant | -9/Mines Resources | -11 -10 -10 -9 -9 ----------- Run | Yrd Mat Min Mat Min Matter Collected 1450 | 184 155 78 1033 . Remotely . | . . . . . Salvage Created 2966 | 18 714 366 1846 22 Parts 184 | 3 45 19 117 . Haulers Intercepted 8 | . 2 . 6 . Recyclers Shooed 3 | . 1 1 1 . Parts Field Recycled . | . . . . . Retrieved Matter . | . . . . . Parts Self-Destructed . | . . . . . Prevented . | . . . . . Parts Restored . | . . . . . Kills | -11 -10 -10 -9 -9 ------- Run | Yrd Mat Min Mat Min Combat Hostiles Destroyed 62 | . 13 9 32 8 Guns 51 | . 13 9 29 . AOE 11 | . . . 3 8 Classes Destroyed 14 | 1 8 1 3 1 Worker 4 | . 1 . 3 . Builder 1 | . 1 . . . Tunneler 3 | 1 . 1 1 . Hauler 8 | . 2 . 6 . Recycler 2 | . . 1 1 . Mechanic 1 | . 1 . . . Operator 4 | . 2 . 2 . Watcher 5 | . 2 . 3 . Swarmer 13 | . 3 3 7 . Grunt 28 | . 10 5 13 . Brawler 2 | . . . 2 . Duelist 1 | . . . 1 . Sentry 9 | . . . 9 . Assembled 8 | . . . . 8 Thug 1 | . . . 1 . Best Kill Streak 8 | 1 6 4 8 8 Combat Bots Only 8 | . 5 4 6 8 Max Kills in Single Turn 4 | 1 1 1 2 4 Gunslinging . | . . . . . Exploded 4 | . . . 2 4 Melee . | . . . . . Uniques/NPCs Destroyed 1 | . . 1 . . YI-UF0 (-10/Mines) Combat | -11 -10 -10 -9 -9 -------- Run | Yrd Mat Min Mat Min Hostile Shots Fired 342 | . 52 64 180 46 Missed 111 | . 22 18 60 11 Hits 231 | . 30 46 120 35 Melee 13 | . . . 9 4 Projectile 218 | . 30 46 111 31 AOE 8 | . . . . 8 Critical Strikes 8 | . 1 . 6 1 Damage Taken 3320 | . 368 486 1567 899 Core 598 | . 80 109 185 224 Absorbed by Shields . | . . . . . Core Remaining (%) 62 | 100 . 24 . . Volleys Fired 280 | 2 64 47 160 7 Largest 2 | 2 2 2 2 2 Hottest 80 | 80 80 80 46 46 Shots Fired 536 | 4 128 94 302 8 Gun 528 | 4 128 94 299 3 Cannon . | . . . . . Launcher 8 | . . . 3 5 Special . | . . . . . Kinetic 310 | . . 8 299 3 Thermal 218 | 4 128 86 . . Explosive 8 | . . . 3 5 Electromagnetic . | . . . . . Robot Hit Streak 28 | 2 14 7 28 5 Robot Miss Streak 3 | 1 3 3 3 1 Penetration Max . | . . . . . Secondary Targets 2 | . . 1 1 . Max Gunslinging Chain 1 | . . 1 1 . Shots Hit Robots 392 | 2 87 61 236 6 Core Hits 184 | 1 42 24 93 24 Critical Kills . | . . . . . Critical Parts Destroyed . | . . . . . Critical Strikes . | . . . . . Melee Attacks . | . . . . . Impact . | . . . . . Slashing . | . . . . . Piercing . | . . . . . Sneak Attacks . | . . . . . Combat Hostiles . | . . . . . Follow-up Attacks . | . . . . . Damage Inflicted 5559 | 21 1013 664 3276 585 Guns 4694 | 21 1013 664 2969 27 Cannons . | . . . . . Explosions 865 | . . . 307 558 Melee . | . . . . . Ramming . | . . . . . Kinetic 3042 | . . 46 2969 27 Thermal 1652 | 21 1013 618 . . Explosive 865 | . . . 307 558 Electromagnetic . | . . . . . Impact . | . . . . . Slashing . | . . . . . Piercing . | . . . . . Highest Corruption 3 | . . . 3 3 Average Corruption 2 | . . . 2 3 Corruption Purged . | . . . . . Corruption Blocked . | . . . . . Effects 38 | . . . 33 5 Message Errors 7 | . . . 6 1 Matter Fused 9 | . . . 9 . Heat Flow Errors 6 | . . . 5 1 Energy Discharges 6 | . . . 4 2 Data Loss (minor) 7 | . . . 6 1 Misfires 2 | . . . 2 . Alerts 1 | . . . 1 . Overload Shots . | . . . . . Overflow Damage 49 | . . . 30 19 Projectiles . | . . . . . Explosions 49 | . . . 30 19 Melee . | . . . . . Knockbacks . | . . . . . Impact . | . . . . . Kinetic . | . . . . . Secondary . | . . . . . Self-Inflicted Damage 158 | . . . . 158 Shots 4 | . . . . 4 Rammed . | . . . . . Targets Rammed . | . . . . . Kicked . | . . . . . Crushed . | . . . . . Highest Temperature 279 | 56 123 8 279 182 Average Temperature 46 | 31 39 2 48 73 Received Heat Transfer 1022 | . 213 195 534 80 Effects 2 | . . . 2 . Interference 2 | . . . 2 . Siege Activations . | . . . . . Martial Activations . | . . . . . Shielding Activations . | . . . . . Robots Disrupted . | . . . . . Combat Hostiles . | . . . . . Robots Corrupted . | . . . . . Combat Hostiles . | . . . . . Parts Fried . | . . . . . Impact Corruptions . | . . . . . Robots Melted . | . . . . . Combat Hostiles . | . . . . . Parts Melted 6 | . 4 2 . . Heat Transferred 3725 | 50 2275 1400 . . Parts Sabotaged . | . . . . . Parts Stolen . | . . . . . Parts Stripped . | . . . . . Power Chain Reactions . | . . . . . Alert | -11 -10 -10 -9 -9 ------- Run | Yrd Mat Min Mat Min Maximum Alert Level 1 | . . . 1 . Low Security (%) 94 | 100 100 100 88 100 Level 1 5 | . . . 11 . Level 2 . | . . . . . Level 3 . | . . . . . Level 4 . | . . . . . Level 5 . | . . . . . High Security . | . . . . . Max Security . | . . . . . Peak Influence 291 | 5 110 68 291 15 Initial 15 | . . 13 . 15 Average 37 | . 28 8 59 1 Influence Increases 1719 | 5 402 210 1081 21 Destroy 0b10 Robot/C 1060 | . 260 160 640 . Destroy 0b10 Robot/NC 150 | 5 45 10 90 . Destroy Leader 306 | . 78 40 188 . Successful Hack 43 | . 4 . 39 . Destroy Structure 40 | . . . 19 21 Lose Combat Pursuer 120 | . 15 . 105 . Influence Decreases 1719 | 5 368 244 1041 61 Entered New Map 46 | . . 21 . 25 Time Decay 1165 | 5 368 193 582 17 Lost Part 97 | . . 30 48 19 Purge Threat 411 | . . . 411 . Squads Dispatched 8 | . 3 1 4 . Investigation 4 | . 1 1 2 . Extermination . | . . . . . Reinforcement 4 | . 2 . 2 . Assault . | . . . . . Garrison . | . . . . . Intercept . | . . . . . Searches Triggered . | . . . . . Construction Impeded . | . . . . . Haulers Reinforced . | . . . . . Active Scanning Responses . | . . . . . Cargo Convoy Interrupts . | . . . . . Stealth | -11 -10 -10 -9 -9 --------- Run | Yrd Mat Min Mat Min Distress Signals 7 | . 1 . 6 . Communications Jammed . | . . . . . Distress Signals . | . . . . . Times Spotted 107 | . 23 9 56 19 Peak Tracking Total 12 | . 4 4 8 12 Tactical Retreats 6 | . 1 . 4 1 Traps | -11 -10 -10 -9 -9 ------- Run | Yrd Mat Min Mat Min Traps Triggered 5 | . 1 . 4 . Indirectly . | . . . . . Trap Hack Attempts . | . . . . . Triggered . | . . . . . Disarmed . | . . . . . Reprogrammed . | . . . . . Reused . | . . . . . Traps Extracted . | . . . . . Installed . | . . . . . Triggered . | . . . . . Machines | -11 -10 -10 -9 -9 ---------- Run | Yrd Mat Min Mat Min Machines Disabled . | . . . . . Max in Single Turn . | . . . . . Machines Repaired . | . . . . . Machines Dismantled . | . . . . . Machines Sabotaged . | . . . . . Overloaded Fab Kills . | . . . . . Hacking | -11 -10 -10 -9 -9 --------- Run | Yrd Mat Min Mat Min Machines Accessed 12 | . 2 1 9 . Terminals 9 | . 2 . 7 . Fabricators . | . . . . . Repair Stations . | . . . . . Recycling Units . | . . . . . Scanalyzers 2 | . . . 2 . Garrison Access . | . . . . . Total Hacks 30 | . 6 1 23 . Successful 19 | . 3 1 15 . Failed 11 | . 3 . 8 . Catastrophic 2 | . 1 . 1 . Database Lockouts . | . . . . . Manual 14 | . 4 . 10 . Terminals 25 | . 6 . 19 . Fabricators . | . . . . . Repair Stations . | . . . . . Recycling Units . | . . . . . Scanalyzers 4 | . . . 4 . Garrison Access . | . . . . . Terminal Hacks 11 | . 1 1 9 . Part Schematic 1 | . . . 1 . Prototype ID Bank 5 | . 1 . 4 . Open Door 1 | . . 1 . . Branch Access Points 1 | . . . 1 . Unreport Threat 3 | . . . 3 . Fabricator Hacks . | . . . . . Repair Station Hacks . | . . . . . Recycling Unit Hacks . | . . . . . Scanalyzer 3 | . . . 3 . Retrieve Study 3 | . . . 3 . Garrison Access Hacks . | . . . . . Unauthorized Hacks 5 | . 2 . 3 . Terminals 5 | . 2 . 3 . Botnet 3 | . 1 . 2 . Operators 2 | . 1 . 1 . Fabricators . | . . . . . Repair Stations . | . . . . . Recycling Units . | . . . . . Scanalyzers . | . . . . . Garrison Access . | . . . . . Data Cores Recovered . | . . . . . Used . | . . . . . Hacking Detections 8 | . 2 . 6 . Full Trace Events . | . . . . . Feedback Events . | . . . . . Feedback Blocked . | . . . . . Robot Schematics Acquired . | . . . . . Robots Built . | . . . . . Authchips . | . . . . . Time . | . . . . . Total Robot Build Rating . | . . . . . Part Schematics Acquired 1 | . . . 1 . Parts Built . | . . . . . Authchips . | . . . . . Time . | . . . . . Total Part Build Rating . | . . . . . Part Studies Acquired 3 | . . . 3 . Parts Repaired . | . . . . . Time . | . . . . . Parts Recycled . | . . . . . Recycled Matter . | . . . . . Retrieved Matter . | . . . . . Retrieved Components . | . . . . . Parts Scanalyzed . | . . . . . Part Schematics Acquired . | . . . . . Parts Damaged . | . . . . . Bothacking | -11 -10 -10 -9 -9 ------------ Run | Yrd Mat Min Mat Min Used RIF Installer . | . . . . . Robots Hacked . | . . . . . Non-combat . | . . . . . Combat . | . . . . . Robot Hacks Applied . | . . . . . Relay Couplers Released . | . . . . . Fabnet Peak Effective % . | . . . . . Robots Rewired . | . . . . . Allies Hacked . | . . . . . Hacks Repelled . | . . . . . Allies | -11 -10 -10 -9 -9 -------- Run | Yrd Mat Min Mat Min Total Allies . | . . . . . Largest Group . | . . . . . Highest-Rated Group . | . . . . . Highest-Rated Ally . | . . . . . Total Orders . | . . . . . Ally Attacks . | . . . . . Total Damage . | . . . . . Kills . | . . . . . Allies Corrupted . | . . . . . Allies Melted . | . . . . . Intel | -11 -10 -10 -9 -9 ------- Run | Yrd Mat Min Mat Min Active Infowar (turns) . | . . . . . Robot Analysis Total . | . . . . . Derelict Logs Recovered 3 | . . 2 . 1 Drone Launches . | . . . . . Drone Recoveries . | . . . . . Exploration | -11 -10 -10 -9 -9 ------------- Run | Yrd Mat Min Mat Min Turns Passed 6392 | 76 1693 1409 2942 272 Spaces Moved 3110 | 60 700 575 1601 174 Core 2 | 2 . . . . Treads . | . . . . . Legs . | . . . . . Wheels 3108 | 58 700 575 1601 174 Hover . | . . . . . Flight . | . . . . . Fastest Speed 50 | 50 95 200 135 130 Average Speed 166 | 87 196 213 142 144 Slowest Speed 215 | 95 215 215 155 180 Overloaded Moves . | . . . . . Propulsion Burnouts . | . . . . . Robots Hopped . | . . . . . Potential Cave-ins . | . . . . . Cave-ins Triggered . | . . . . . Exploration Rate (%) 70 | 4 97 96 94 60 Regions Visited 4 Branch Regions 2 Pre-discovered Areas 2 | . . 1 . 1 Known Exits Taken 1 | . . . 1 . Unknown Exits Taken 3 | 1 1 1 . . Scrap Searched 2 | . . 1 . 1 Spaces Dug . | . . . . . Terrain Destroyed 42 | . . . 16 26 Melee . | . . . . . Projectile . | . . . . . AOE 42 | . . . 16 26 Terrain Rammed . | . . . . . Walls Destroyed . | . . . . . Machines Disabled . | . . . . . Actions | -11 -10 -10 -9 -9 --------- Run | Yrd Mat Min Mat Min Total 3851 | 76 897 669 2022 187 Wait 288 | 3 87 26 171 1 Move 3106 | 59 699 574 1600 174 Hop . | . . . . . Pick Up 66 | 6 25 8 26 1 Fast Attach 9 | 6 2 . 1 . Attach 10 | . . 3 5 2 Detach 1 | . 1 . . . Swap 34 | . 6 5 22 1 Drop 57 | . 13 6 37 1 Fire 280 | 2 64 47 160 7 Melee . | . . . . . Ram . | . . . . . Kick . | . . . . . Crush . | . . . . . Escape Stasis . | . . . . . Rewire . | . . . . . Trap . | . . . . . Miscellaneous . | . . . . . Route ------- -11/Scrapyard -10/Materials (discovered 5 exits: *Mat x3 / *Min x2) -10/Mines (discovered 3 exits: *Mat x2 / [*Sub]) -9/Materials (discovered 4 exits: [*Mat x3] / *Min) -9/Mines (discovered 1 exit: [*Exi]) History --------- Turn | Location | Event 11 | -11/Scrapyard | Discovered new exit (range 15) 77 | -11/Scrapyard | Entered Materials 303 | -10/Materials | Discovered new exit (range 16) 306 | -10/Materials | Build established: Mutant 923 | -10/Materials | Discovered new exit (range 7) 1089 | -10/Materials | Discovered new exit (range 15) 1243 | -10/Materials | Discovered new exit (range 5) 1681 | -10/Materials | Discovered new exit (range 3) 1770 | -10/Materials | Entered Mines 1904 | -10/Mines | Met a Derelict shopkeep closing up shop 1955 | -10/Mines | Core integrity fell below 50% 2014 | -10/Mines | Learned Materials terminal intel 2057 | -10/Mines | Discovered new exit (range 9) 2319 | -10/Mines | Learned location of Storage (-7) 2356 | -10/Mines | Discovered new exit (range 7) 2708 | -10/Mines | Discovered new exit (range 9) 2719 | -10/Mines | Destroyed YI-UF0 3083 | -10/Mines | Found a hidden stash of uninstalled traps 3179 | -10/Mines | Entered Materials 3179 | -9/Materials | Evolved 2 slots: Propulsion x1, Utility x1 3180 | -9/Materials | Loaded intel: 12 terminal locations 3247 | -9/Materials | Identified exit to Mines 3781 | -9/Materials | Discovered new exit (range 7) 4652 | -9/Materials | Discovered new exit (range 3) 5772 | -9/Materials | Discovered new exit (range 14) 6121 | -9/Materials | Entered Mines 6128 | -9/Mines | Received a Rocket Launcher from a helpful Derelict 6164 | -9/Mines | Deemed a non-threat by the Exiles lab entrance 6165 | -9/Mines | Discovered new exit (range 5) 6350 | -9/Mines | Assembled infested the area 6355 | -9/Mines | Assisted by a Guerilla fighting off Assembled 6366 | -9/Mines | Core integrity fell below 50% 6388 | -9/Mines | Core integrity fell below 20% 6393 | -9/Mines | Destroyed by as-60877 with Assembled Heavy Rifle Last Messages --------------- 06374_ Imp. Treads destroyed. 06375_ Knocked back. 06376_ Destroyed Asb. Hover Unit. 06378_ as-24356 destroyed. 06378_ as-31951 destroyed. 06378_ Rocket Launcher+ destroyed. 06378_ Destroyed Rocket Launcher+. 06380_ as-40025 destroyed. 06385_ Rnf. Ion Engine destroyed. 06386_ The unstable cave ceiling collapses. 06387_ Imp. Assault Rifle destroyed. 06388_ The unstable cave ceiling collapses. 06388_ 8 Matter crushed. 06389_ Wheel destroyed. 06390_ Arm. Wheel destroyed. 06391_ The unstable cave ceiling collapses. 06392_ K-01 Serf collects debris. 06392_ D-53 Grenadier overheating. 06393_ The unstable cave ceiling collapses. 06393_ D-53 Grenadier destroyed. Map ----- +----------------------------------------------------+ | ?????????# ###????????????# #?????????????? | | ?????????# ############## ##????????????? | | ?????????#### #????????????# | | ????????????# ############# ## #?????????### | | ????????????# #???????????# ### #????????## | | ????????????# #???????????# #?# #######?## | | ????????????# #???????????# ##?## ## ### | | ????????????# #???????????# ##??## | | ????????????# #???????????## ##??# | | ????????????# #????????????## #??## | | ????????????# #?????????????# #??## | | ???????????? ?????????????#####???###### | | ???????????? ??? ?????????????????????## | | ???????????? ??? ?????????????????????##### | | ????????????# ??? ?????????????????????????## | | ?????????????##???? ?????????????????????????## | | ???????????????????#% ??????????????????????????# | | ??????????????????## ##???????????????????????## | | ?????????????????## ##?????????????????????# | | ????????????????### ??????????????????????# | | ????????????????# k ####??????????????????# | | ????????????????## # ##?????????????????## | | ????????????????# % ##?#####???????????# | | ????????????????# a ### ##?###??????# | | ?????????????????# d ## ## ##?????## | | ????????????###### # @ ## #??????# | | ?????????#### ## #??????? | | ????????## ## #??????? | | ????????# ## #???????? | | ????????# a #????????? | | ?????????# #?????????? | | ?????????# ########### | | ?????????## a | | ??????????# ## # ## ########### | | ?????????# ???# #### ##?????????? | | ???????? ??? # #??####??????????? | | ?????? ??? ## # ##????????????????? | | ????????? ?###### ###?????????????????? | | ???????? ## ????????## ##???????????????????? | | ??????????##????????????#####????????????????????? | | ?????????????????????????????????????????????????? | | ?????????????????????????????????????????????????? | | ?????????????????????????????????????????????????? | | | | | | | | | | | | | | | +----------------------------------------------------+ Best States ------------- Heat Dissipation 42 Energy Generation 14 Energy Capacity 275 Matter Stores 300 Matter Capacity 300 Sight Range 16 Terrain Scan Density 10 Armor Coverage 150 Evasion (%) 44 Targeting Accuracy 8 Item Schematics ----------------- Sensor Array | -9/Materials | Hacked Robot Schematics ------------------ None Fabricated ------------ Nothing Repaired ---------- Nothing Studied --------- Hover Unit | -9/Materials | Hacked Rocket Launcher | -9/Materials | Hacked Grenade Launcher | -9/Materials | Hacked Alien Tech Used ----------------- None Achievements -------------- None Challenges ------------ None Game ------ Seed HeartAssembledTorch Manual? 0 Play Time 00:28:06 Cumulative 622.4 hours Start 2026.09.07 @ 01:28:22 End 2026.09.07 @ 01:54:43 Sessions 1 Manual Loads 0 Difficulty Rogue Special Mode None Game No. 273 Rogue 273 Adventurer 0 Explorer 0 Win Type - Total 12 Types 8/0/3/0/0/0/1/0/0/0 Lore% 80 Gallery% 74 Achievement% 55 Wizard Run 0 Options --------- Layout 0 ASCII 0 Keyboard 1 Movement Vi Keybinds 0 Fullscreen 2 Font 18/SmallcapsGlow Map View 76x50 Zoom Use 0% Tactical HUD 1 Map Filters NONE Filters NONE Steam 1 RUN: 865e848c-eaba-427c-ba7d-56aac595d63d